[Event "Titled Tuesday Blitz June 14 Early 2022"]
[White "Matinian, Nikita"]
[Black "Sarana, Alexey"]
[WhiteFideId "24129100"]
[BlackFideId "24133795"]
[WhiteElo "2422"]
[BlackElo "2666"]
[Result "0-1"]
[Round "05"]
[TimeControl "180+1"]
[Date "2022.06.14"]
[WhiteClock "0:00:04"]
[BlackClock "0:00:37"]

1. e4 {[%clk 0:03:00]}  c5 {[%clk 0:03:00]} 2. Nf3 {[%clk 0:03:01]}  d6 {[%clk 0:03:01]} 3. Bb5+ {[%clk 0:03:01]}  Bd7 {[%clk 0:03:00]} 4. Bxd7+ {[%clk 0:03:01]}  Nxd7 {[%clk 0:03:01]} 5. O-O {[%clk 0:03:01]}  e6 {[%clk 0:03:01]} 6. c3 {[%clk 0:02:59]}  Ngf6 {[%clk 0:03:01]} 7. Qe2 {[%clk 0:02:59]}  Be7 {[%clk 0:03:01]} 8. d4 {[%clk 0:03:00]}  O-O {[%clk 0:03:02]} 9. Rd1 {[%clk 0:02:59]}  cxd4 {[%clk 0:03:01]} 10. cxd4 {[%clk 0:02:59]}  b5 {[%clk 0:03:02]} 11. e5 {[%clk 0:02:55]}  dxe5 {[%clk 0:03:02]} 12. dxe5 {[%clk 0:02:54]}  Nd5 {[%clk 0:03:02]} 13. Qxb5 {[%clk 0:02:42]}  Qc7 {[%clk 0:03:01]} 14. Nc3 {[%clk 0:02:37]}  Nxc3 {[%clk 0:02:54]} 15. bxc3 {[%clk 0:02:38]}  Nb6 {[%clk 0:02:42]} 16. Be3 {[%clk 0:02:26]}  Nd5 {[%clk 0:02:40]} 17. Bd4 {[%clk 0:02:13]}  Rfb8 {[%clk 0:02:23]} 18. Qd3 {[%clk 0:02:08]}  Rc8 {[%clk 0:02:21]} 19. Rac1 {[%clk 0:02:03]}  Ba3 {[%clk 0:02:16]} 20. Ng5 {[%clk 0:01:54]}  g6 {[%clk 0:02:14]} 21. Qh3 {[%clk 0:01:46]}  h5 {[%clk 0:02:12]} 22. Rc2 {[%clk 0:01:23]}  Be7 {[%clk 0:02:05]} 23. Ne4 {[%clk 0:01:23]}  Rab8 {[%clk 0:02:03]} 24. g4 {[%clk 0:01:19]}  hxg4 {[%clk 0:02:00]} 25. Qxg4 {[%clk 0:01:20]}  Kg7 {[%clk 0:02:00]} 26. c4 {[%clk 0:01:10]}  Rh8 {[%clk 0:01:44]} 27. Nf6 {[%clk 0:00:42]}  Nxf6 {[%clk 0:01:26]} 28. exf6+ {[%clk 0:00:43]}  Bxf6 {[%clk 0:01:26]} 29. Bxf6+ {[%clk 0:00:41]}  Kxf6 {[%clk 0:01:27]} 30. h4 {[%clk 0:00:29]}  Rh5 {[%clk 0:01:23]} 31. Qd4+ {[%clk 0:00:26]}  Ke7 {[%clk 0:01:16]} 32. c5 {[%clk 0:00:25]}  Rd5 {[%clk 0:01:11]} 33. Qa1 {[%clk 0:00:22]}  Rxc5 {[%clk 0:01:10]} 34. Rcd2 {[%clk 0:00:20]}  Rb4 {[%clk 0:01:05]} 35. Qg7 {[%clk 0:00:17]}  Rg4+ {[%clk 0:00:56]} 36. Kf1 {[%clk 0:00:17]}  Rf5 {[%clk 0:00:56]} 37. Qg8 {[%clk 0:00:05]}  Qc4+ {[%clk 0:00:53]} 38. Rd3 {[%clk 0:00:04]}  Rd5 {[%clk 0:00:37]} 0-1


[Site "https://www.chess.com"]

[Event "Titled Tuesday Blitz June 14 Early 2022"]
[White "Oparin, Grigoriy"]
[Black "Avinash, Ramesh"]
[WhiteFideId "24125890"]
[BlackFideId "45018340"]
[WhiteElo "2639"]
[BlackElo "1875"]
[Result "1/2-1/2"]
[Round "05"]
[TimeControl "180+1"]
[Date "2022.06.14"]
[WhiteClock "0:00:06"]
[BlackClock "0:00:27"]

1. e4 {[%clk 0:03:00]}  e6 {[%clk 0:02:59]} 2. d4 {[%clk 0:03:00]}  d5 {[%clk 0:03:00]} 3. Nc3 {[%clk 0:03:01]}  Nf6 {[%clk 0:03:00]} 4. e5 {[%clk 0:03:01]}  Nfd7 {[%clk 0:03:00]} 5. f4 {[%clk 0:03:02]}  c5 {[%clk 0:03:01]} 6. Nf3 {[%clk 0:03:03]}  Nc6 {[%clk 0:03:01]} 7. Be3 {[%clk 0:03:04]}  cxd4 {[%clk 0:03:02]} 8. Nxd4 {[%clk 0:03:04]}  Bc5 {[%clk 0:03:02]} 9. Qd2 {[%clk 0:03:04]}  Nxd4 {[%clk 0:03:03]} 10. Bxd4 {[%clk 0:03:04]}  Bxd4 {[%clk 0:03:03]} 11. Qxd4 {[%clk 0:03:05]}  Qb6 {[%clk 0:03:03]} 12. Nb5 {[%clk 0:03:05]}  Qxd4 {[%clk 0:03:03]} 13. Nxd4 {[%clk 0:03:06]}  Ke7 {[%clk 0:03:03]} 14. Kd2 {[%clk 0:03:04]}  Nb8 {[%clk 0:03:03]} 15. Bd3 {[%clk 0:02:59]}  a6 {[%clk 0:02:58]} 16. b4 {[%clk 0:02:52]}  Bd7 {[%clk 0:02:55]} 17. a4 {[%clk 0:02:51]}  Nc6 {[%clk 0:02:55]} 18. c3 {[%clk 0:02:47]}  Nxd4 {[%clk 0:02:51]} 19. cxd4 {[%clk 0:02:48]}  Rhc8 {[%clk 0:02:46]} 20. Rhc1 {[%clk 0:02:42]}  h6 {[%clk 0:02:41]} 21. Rc5 {[%clk 0:02:36]}  Rc6 {[%clk 0:02:12]} 22. a5 {[%clk 0:02:28]}  Rcc8 {[%clk 0:02:10]} 23. Rf1 {[%clk 0:02:25]}  f5 {[%clk 0:02:01]} 24. exf6+ {[%clk 0:02:22]}  gxf6 {[%clk 0:02:02]} 25. f5 {[%clk 0:02:18]}  Rxc5 {[%clk 0:01:58]} 26. bxc5 {[%clk 0:02:19]}  e5 {[%clk 0:01:58]} 27. g3 {[%clk 0:02:08]}  e4 {[%clk 0:01:50]} 28. Be2 {[%clk 0:02:07]}  Rh8 {[%clk 0:01:47]} 29. Bh5 {[%clk 0:01:58]}  Bb5 {[%clk 0:01:43]} 30. Rg1 {[%clk 0:01:58]}  Rc8 {[%clk 0:01:35]} 31. Ke3 {[%clk 0:01:55]}  Rd8 {[%clk 0:01:31]} 32. Rg2 {[%clk 0:01:50]}  Rc8 {[%clk 0:01:31]} 33. Rb2 {[%clk 0:01:50]}  Rg8 {[%clk 0:01:26]} 34. Be2 {[%clk 0:01:48]}  Bc6 {[%clk 0:01:26]} 35. Kf4 {[%clk 0:01:46]}  Kd7 {[%clk 0:01:22]} 36. Rb1 {[%clk 0:01:45]}  Rg5 {[%clk 0:01:19]} 37. g4 {[%clk 0:01:45]}  Kc7 {[%clk 0:01:19]} 38. Rb3 {[%clk 0:01:44]}  Rg8 {[%clk 0:01:16]} 39. Rh3 {[%clk 0:01:42]}  Rh8 {[%clk 0:01:15]} 40. Rg3 {[%clk 0:01:43]}  Rg8 {[%clk 0:01:12]} 41. Bd1 {[%clk 0:01:25]}  Kd7 {[%clk 0:01:10]} 42. Rh3 {[%clk 0:01:23]}  Rh8 {[%clk 0:01:09]} 43. Ra3 {[%clk 0:01:24]}  Kc7 {[%clk 0:01:08]} 44. Ba4 {[%clk 0:01:02]}  h5 {[%clk 0:00:53]} 45. Bxc6 {[%clk 0:01:00]}  Kxc6 {[%clk 0:00:53]} 46. Rh3 {[%clk 0:00:55]}  Kb5 {[%clk 0:00:44]} 47. Rxh5 {[%clk 0:00:55]}  Re8 {[%clk 0:00:43]} 48. Ke3 {[%clk 0:00:56]}  Kxa5 {[%clk 0:00:41]} 49. Rh6 {[%clk 0:00:54]}  Rf8 {[%clk 0:00:39]} 50. Rh7 {[%clk 0:00:47]}  b5 {[%clk 0:00:40]} 51. cxb6 {[%clk 0:00:30]}  Kxb6 {[%clk 0:00:39]} 52. h4 {[%clk 0:00:31]}  a5 {[%clk 0:00:34]} 53. Rd7 {[%clk 0:00:25]}  a4 {[%clk 0:00:33]} 54. Rd6+ {[%clk 0:00:24]}  Kb5 {[%clk 0:00:33]} 55. Rxd5+ {[%clk 0:00:24]}  Kb4 {[%clk 0:00:33]} 56. Rd6 {[%clk 0:00:23]}  Ra8 {[%clk 0:00:30]} 57. Rxf6 {[%clk 0:00:21]}  Kb5 {[%clk 0:00:27]} 58. Rf7 {[%clk 0:00:19]}  Kb6 {[%clk 0:00:26]} 59. Rf6+ {[%clk 0:00:12]}  Kb5 {[%clk 0:00:26]} 60. Rf7 {[%clk 0:00:08]}  Kb6 {[%clk 0:00:26]} 61. Rf6+ {[%clk 0:00:06]}  Kb5 {[%clk 0:00:27]} 1/2-1/2


[Site "https://www.chess.com"]

[Event "Titled Tuesday Blitz June 14 Early 2022"]
[White "Paravyan, David"]
[Black "Galperin, Platon"]
[WhiteFideId "4194985"]
[BlackFideId "14165414"]
[WhiteElo "2569"]
[BlackElo "2432"]
[Result "1-0"]
[Round "05"]
[TimeControl "180+1"]
[Date "2022.06.14"]
[WhiteClock "0:00:04"]
[BlackClock "0:00:13"]

1. e4 {[%clk 0:03:00]}  e5 {[%clk 0:02:57]} 2. Nf3 {[%clk 0:02:59]}  Nc6 {[%clk 0:02:57]} 3. Nc3 {[%clk 0:02:58]}  Nf6 {[%clk 0:02:55]} 4. d4 {[%clk 0:02:58]}  exd4 {[%clk 0:02:55]} 5. Nxd4 {[%clk 0:02:59]}  g6 {[%clk 0:02:53]} 6. Be3 {[%clk 0:02:53]}  Bg7 {[%clk 0:02:53]} 7. Qd2 {[%clk 0:02:53]}  O-O {[%clk 0:02:52]} 8. O-O-O {[%clk 0:02:53]}  Re8 {[%clk 0:02:53]} 9. f3 {[%clk 0:02:46]}  d5 {[%clk 0:02:53]} 10. Bb5 {[%clk 0:02:33]}  Bd7 {[%clk 0:02:52]} 11. exd5 {[%clk 0:02:07]}  Nb4 {[%clk 0:02:51]} 12. Bc4 {[%clk 0:01:56]}  c5 {[%clk 0:02:13]} 13. dxc6 {[%clk 0:01:50]}  bxc6 {[%clk 0:02:11]} 14. Rhe1 {[%clk 0:01:20]}  Qc7 {[%clk 0:01:54]} 15. Bh6 {[%clk 0:01:04]}  Bh8 {[%clk 0:01:53]} 16. Qf4 {[%clk 0:00:52]}  Qb6 {[%clk 0:01:28]} 17. Bg5 {[%clk 0:00:37]}  Nfd5 {[%clk 0:01:24]} 18. Rxe8+ {[%clk 0:00:34]}  Rxe8 {[%clk 0:01:23]} 19. Bxd5 {[%clk 0:00:31]}  Nxd5 {[%clk 0:01:23]} 20. Nxd5 {[%clk 0:00:30]}  cxd5 {[%clk 0:01:24]} 21. Qd2 {[%clk 0:00:23]}  a5 {[%clk 0:01:24]} 22. c3 {[%clk 0:00:18]}  a4 {[%clk 0:01:24]} 23. a3 {[%clk 0:00:17]}  Rb8 {[%clk 0:01:20]} 24. Be3 {[%clk 0:00:15]}  Qb7 {[%clk 0:01:18]} 25. g4 {[%clk 0:00:15]}  Be5 {[%clk 0:01:14]} 26. Re1 {[%clk 0:00:13]}  Bd6 {[%clk 0:01:14]} 27. Qc2 {[%clk 0:00:11]}  Qc7 {[%clk 0:00:56]} 28. h3 {[%clk 0:00:08]}  Qc4 {[%clk 0:00:56]} 29. Re2 {[%clk 0:00:06]}  Be5 {[%clk 0:00:51]} 30. Bf2 {[%clk 0:00:05]}  Bd6 {[%clk 0:00:46]} 31. Re1 {[%clk 0:00:03]}  Qa2 {[%clk 0:00:45]} 32. Qb1 {[%clk 0:00:04]}  Rxb2 {[%clk 0:00:38]} 33. Qxa2 {[%clk 0:00:03]}  Rxa2 {[%clk 0:00:39]} 34. Nc2 {[%clk 0:00:03]}  Bb5 {[%clk 0:00:35]} 35. Kb1 {[%clk 0:00:02]}  Bc4 {[%clk 0:00:36]} 36. Bd4 {[%clk 0:00:01]}  Kf8 {[%clk 0:00:33]} 37. g5 {[%clk 0:00:01]}  Bb3 {[%clk 0:00:30]} 38. Nb4 {[%clk 0:00:01]}  Rh2 {[%clk 0:00:21]} 39. Na6 {[%clk 0:00:02]}  Bxa3 {[%clk 0:00:19]} 40. Bc5+ {[%clk 0:00:02]}  Bxc5 {[%clk 0:00:20]} 41. Nxc5 {[%clk 0:00:03]}  h6 {[%clk 0:00:14]} 42. gxh6 {[%clk 0:00:02]}  Rxh3 {[%clk 0:00:13]} 43. Nd7+ {[%clk 0:00:03]}  Kg8 {[%clk 0:00:13]} 44. Nf6+ {[%clk 0:00:04]} 1-0


[Site "https://www.chess.com"]

[Event "Titled Tuesday Blitz June 14 Early 2022"]
[White "Sanal, Vahap"]
[Black "Yang, Kaiqi"]
[WhiteFideId "6300545"]
[BlackFideId "8604398"]
[WhiteElo "2574"]
[BlackElo "2373"]
[Result "1-0"]
[Round "05"]
[TimeControl "180+1"]
[Date "2022.06.14"]
[WhiteClock "0:00:09"]
[BlackClock "0:00:07"]

1. c4 {[%clk 0:03:00]}  e6 {[%clk 0:02:58]} 2. Nc3 {[%clk 0:02:59]}  d5 {[%clk 0:02:59]} 3. d4 {[%clk 0:02:59]}  a6 {[%clk 0:02:58]} 4. g3 {[%clk 0:02:58]}  dxc4 {[%clk 0:02:56]} 5. Bg2 {[%clk 0:02:57]}  c5 {[%clk 0:02:56]} 6. d5 {[%clk 0:02:47]}  Nf6 {[%clk 0:02:42]} 7. Bg5 {[%clk 0:02:41]}  exd5 {[%clk 0:02:28]} 8. Nxd5 {[%clk 0:02:01]}  Be7 {[%clk 0:02:28]} 9. Nxe7 {[%clk 0:01:33]}  Qxe7 {[%clk 0:02:22]} 10. Qc2 {[%clk 0:01:24]}  h6 {[%clk 0:02:12]} 11. Bd2 {[%clk 0:01:23]}  Be6 {[%clk 0:02:09]} 12. Nh3 {[%clk 0:01:04]}  Nc6 {[%clk 0:02:05]} 13. Bxc6+ {[%clk 0:01:04]}  bxc6 {[%clk 0:02:06]} 14. Nf4 {[%clk 0:01:04]}  O-O {[%clk 0:01:59]} 15. f3 {[%clk 0:00:56]}  Rab8 {[%clk 0:01:55]} 16. Bc3 {[%clk 0:00:53]}  Nd5 {[%clk 0:01:55]} 17. O-O {[%clk 0:00:36]}  Ne3 {[%clk 0:01:52]} 18. Qe4 {[%clk 0:00:36]}  Nxf1 {[%clk 0:01:51]} 19. Rxf1 {[%clk 0:00:37]}  Rfe8 {[%clk 0:01:50]} 20. Qxc6 {[%clk 0:00:31]}  f6 {[%clk 0:01:26]} 21. Qxa6 {[%clk 0:00:20]}  Bf7 {[%clk 0:01:27]} 22. e4 {[%clk 0:00:15]}  Ra8 {[%clk 0:01:16]} 23. Qc6 {[%clk 0:00:13]}  Rec8 {[%clk 0:01:13]} 24. Qb6 {[%clk 0:00:13]}  Qd7 {[%clk 0:01:08]} 25. e5 {[%clk 0:00:08]}  fxe5 {[%clk 0:00:54]} 26. Bxe5 {[%clk 0:00:08]}  Qc6 {[%clk 0:00:51]} 27. Qxc6 {[%clk 0:00:06]}  Rxc6 {[%clk 0:00:52]} 28. a3 {[%clk 0:00:07]}  Re8 {[%clk 0:00:50]} 29. Bc3 {[%clk 0:00:07]}  g5 {[%clk 0:00:50]} 30. Ng2 {[%clk 0:00:07]}  Re2 {[%clk 0:00:49]} 31. Rd1 {[%clk 0:00:05]}  Bh5 {[%clk 0:00:38]} 32. g4 {[%clk 0:00:05]}  Bg6 {[%clk 0:00:38]} 33. h4 {[%clk 0:00:05]}  Bd3 {[%clk 0:00:38]} 34. hxg5 {[%clk 0:00:03]}  hxg5 {[%clk 0:00:39]} 35. Rd2 {[%clk 0:00:03]}  Rce6 {[%clk 0:00:38]} 36. Rxe2 {[%clk 0:00:03]}  Rxe2 {[%clk 0:00:39]} 37. a4 {[%clk 0:00:04]}  Kf7 {[%clk 0:00:31]} 38. a5 {[%clk 0:00:04]}  Re6 {[%clk 0:00:18]} 39. Kf2 {[%clk 0:00:05]}  Ke7 {[%clk 0:00:10]} 40. Ne3 {[%clk 0:00:06]}  Kd7 {[%clk 0:00:08]} 41. Bg7 {[%clk 0:00:06]}  Kc6 {[%clk 0:00:07]} 42. Bc3 {[%clk 0:00:06]}  Kb5 {[%clk 0:00:08]} 43. Bd2 {[%clk 0:00:07]}  Re8 {[%clk 0:00:07]} 44. Kg3 {[%clk 0:00:06]}  Re6 {[%clk 0:00:06]} 45. Nd5 {[%clk 0:00:06]}  Re2 {[%clk 0:00:05]} 46. Nc3+ {[%clk 0:00:06]}  Ka6 {[%clk 0:00:05]} 47. Nxe2 {[%clk 0:00:07]}  Bxe2 {[%clk 0:00:05]} 48. Bxg5 {[%clk 0:00:08]}  Kxa5 {[%clk 0:00:06]} 49. Bd2+ {[%clk 0:00:08]}  Ka4 {[%clk 0:00:06]} 50. Bc3 {[%clk 0:00:08]}  Kb3 {[%clk 0:00:06]} 51. f4 {[%clk 0:00:09]}  Bd3 {[%clk 0:00:06]} 52. f5 {[%clk 0:00:10]}  Ka4 {[%clk 0:00:06]} 53. Kf4 {[%clk 0:00:10]}  Kb5 {[%clk 0:00:06]} 54. g5 {[%clk 0:00:11]}  Kc6 {[%clk 0:00:07]} 55. g6 {[%clk 0:00:09]} 1-0


[Site "https://www.chess.com"]

[Event "Titled Tuesday Blitz June 14 Early 2022"]
[White "Sargsyan, Anna M."]
[Black "Molina, Roberto Junio Brito"]
[WhiteFideId "13308130"]
[BlackFideId "2109450"]
[WhiteElo "2271"]
[BlackElo "2432"]
[Result "1-0"]
[Round "05"]
[TimeControl "180+1"]
[Date "2022.06.14"]
[WhiteClock "0:00:52"]
[BlackClock "0:00:20"]

1. d4 {[%clk 0:03:00]}  d5 {[%clk 0:02:57]} 2. c4 {[%clk 0:02:59]}  c6 {[%clk 0:02:56]} 3. Nc3 {[%clk 0:02:58]}  Nf6 {[%clk 0:02:54]} 4. Nf3 {[%clk 0:02:59]}  dxc4 {[%clk 0:02:54]} 5. a4 {[%clk 0:02:59]}  Bf5 {[%clk 0:02:53]} 6. Ne5 {[%clk 0:02:59]}  Nbd7 {[%clk 0:02:53]} 7. Nxc4 {[%clk 0:02:58]}  Nb6 {[%clk 0:02:54]} 8. Ne5 {[%clk 0:02:52]}  a5 {[%clk 0:02:53]} 9. Bf4 {[%clk 0:02:40]}  e6 {[%clk 0:02:48]} 10. e3 {[%clk 0:02:40]}  Nbd5 {[%clk 0:02:45]} 11. Bg3 {[%clk 0:02:39]}  Qb6 {[%clk 0:02:44]} 12. Nc4 {[%clk 0:02:31]}  Qb4 {[%clk 0:02:39]} 13. Qd2 {[%clk 0:02:23]}  Be7 {[%clk 0:02:23]} 14. Be2 {[%clk 0:02:19]}  O-O {[%clk 0:02:22]} 15. O-O {[%clk 0:02:19]}  Rfd8 {[%clk 0:02:22]} 16. Qc1 {[%clk 0:02:02]}  Bf8 {[%clk 0:01:46]} 17. f3 {[%clk 0:01:52]}  Bg6 {[%clk 0:01:29]} 18. e4 {[%clk 0:01:36]}  Nxc3 {[%clk 0:01:26]} 19. bxc3 {[%clk 0:01:37]}  Qe7 {[%clk 0:01:14]} 20. Nb6 {[%clk 0:01:14]}  Ra7 {[%clk 0:01:12]} 21. Rb1 {[%clk 0:01:09]}  c5 {[%clk 0:01:07]} 22. Bf2 {[%clk 0:01:09]}  cxd4 {[%clk 0:01:06]} 23. cxd4 {[%clk 0:01:06]}  Qa3 {[%clk 0:00:56]} 24. Qc7 {[%clk 0:00:54]}  Re8 {[%clk 0:00:43]} 25. Bb5 {[%clk 0:00:52]}  Bd6 {[%clk 0:00:26]} 26. Qc2 {[%clk 0:00:51]}  Rd8 {[%clk 0:00:20]} 27. Rb3 {[%clk 0:00:52]} 1-0


[Site "https://www.chess.com"]

[Event "Titled Tuesday Blitz June 14 Early 2022"]
[White "Shubin, Kirill"]
[Black "Grischuk, Alexander"]
[WhiteFideId "34119962"]
[BlackFideId "4126025"]
[WhiteElo "2474"]
[BlackElo "2762"]
[Result "0-1"]
[Round "05"]
[TimeControl "180+1"]
[Date "2022.06.14"]
[WhiteClock "0:00:33"]
[BlackClock "0:00:43"]

1. e4 {[%clk 0:03:00]}  e6 {[%clk 0:02:15]} 2. d4 {[%clk 0:03:00]}  d5 {[%clk 0:02:15]} 3. Nc3 {[%clk 0:02:59]}  Nf6 {[%clk 0:02:15]} 4. Bg5 {[%clk 0:02:58]}  dxe4 {[%clk 0:02:15]} 5. Nxe4 {[%clk 0:02:57]}  Be7 {[%clk 0:02:15]} 6. Bxf6 {[%clk 0:02:57]}  gxf6 {[%clk 0:02:15]} 7. Qd2 {[%clk 0:02:57]}  c5 {[%clk 0:02:15]} 8. Nxc5 {[%clk 0:02:56]}  Bxc5 {[%clk 0:02:15]} 9. dxc5 {[%clk 0:02:56]}  Qxd2+ {[%clk 0:02:15]} 10. Kxd2 {[%clk 0:02:57]}  a5 {[%clk 0:02:16]} 11. Re1 {[%clk 0:02:52]}  Ke7 {[%clk 0:02:13]} 12. Kc1 {[%clk 0:02:30]}  Bd7 {[%clk 0:02:06]} 13. Bd3 {[%clk 0:02:18]}  Bc6 {[%clk 0:02:02]} 14. Be4 {[%clk 0:02:15]}  Rc8 {[%clk 0:01:52]} 15. Nf3 {[%clk 0:02:10]}  Bxe4 {[%clk 0:01:49]} 16. Rxe4 {[%clk 0:02:11]}  Rxc5 {[%clk 0:01:50]} 17. Rh4 {[%clk 0:02:07]}  h5 {[%clk 0:01:50]} 18. Rd1 {[%clk 0:02:03]}  Nc6 {[%clk 0:01:49]} 19. Kb1 {[%clk 0:01:58]}  Rg8 {[%clk 0:01:49]} 20. g3 {[%clk 0:01:55]}  Rg4 {[%clk 0:01:49]} 21. Re1 {[%clk 0:01:43]}  Rf5 {[%clk 0:01:19]} 22. Re3 {[%clk 0:01:39]}  Ne5 {[%clk 0:01:20]} 23. Nxe5 {[%clk 0:01:27]}  fxe5 {[%clk 0:01:21]} 24. f3 {[%clk 0:01:12]}  Rxh4 {[%clk 0:01:21]} 25. gxh4 {[%clk 0:01:12]}  e4 {[%clk 0:01:14]} 26. Rxe4 {[%clk 0:01:11]}  Rxf3 {[%clk 0:01:14]} 27. b3 {[%clk 0:01:04]}  Rf5 {[%clk 0:01:01]} 28. Kb2 {[%clk 0:01:00]}  Kd6 {[%clk 0:01:01]} 29. Rd4+ {[%clk 0:00:59]}  Rd5 {[%clk 0:01:01]} 30. Rf4 {[%clk 0:00:57]}  f5 {[%clk 0:01:01]} 31. Rf2 {[%clk 0:00:57]}  Rd4 {[%clk 0:00:59]} 32. c4 {[%clk 0:00:51]}  Rxh4 {[%clk 0:00:58]} 33. Rd2+ {[%clk 0:00:51]}  Ke7 {[%clk 0:00:54]} 34. Ka3 {[%clk 0:00:50]}  f4 {[%clk 0:00:49]} 35. Ka4 {[%clk 0:00:49]}  f3 {[%clk 0:00:49]} 36. Kb5 {[%clk 0:00:48]}  Rf4 {[%clk 0:00:48]} 37. Rf2 {[%clk 0:00:48]}  e5 {[%clk 0:00:48]} 38. Kc5 {[%clk 0:00:45]}  Ke6 {[%clk 0:00:47]} 39. a3 {[%clk 0:00:44]}  Rf7 {[%clk 0:00:42]} 40. h4 {[%clk 0:00:35]}  e4 {[%clk 0:00:42]} 41. Kd4 {[%clk 0:00:34]}  Kf5 {[%clk 0:00:43]} 42. Ke3 {[%clk 0:00:33]}  Rd7 {[%clk 0:00:43]} 0-1


[Site "https://www.chess.com"]

[Event "Titled Tuesday Blitz June 14 Early 2022"]
[White "Skliarov, Viktor"]
[Black "Pranesh M"]
[WhiteFideId "14106736"]
[BlackFideId "35028600"]
[WhiteElo "2229"]
[BlackElo "1902"]
[Result "1-0"]
[Round "05"]
[TimeControl "180+1"]
[Date "2022.06.14"]
[WhiteClock "0:00:03"]
[BlackClock "0:00:03"]

1. e4 {[%clk 0:03:00]}  e5 {[%clk 0:02:59]} 2. Nc3 {[%clk 0:03:00]}  Nc6 {[%clk 0:02:59]} 3. Bc4 {[%clk 0:03:01]}  Nf6 {[%clk 0:02:59]} 4. d3 {[%clk 0:02:57]}  Bb4 {[%clk 0:02:59]} 5. Bg5 {[%clk 0:02:56]}  h6 {[%clk 0:02:58]} 6. Bxf6 {[%clk 0:02:55]}  Qxf6 {[%clk 0:02:58]} 7. Ne2 {[%clk 0:02:55]}  d6 {[%clk 0:02:58]} 8. O-O {[%clk 0:02:54]}  Bg4 {[%clk 0:02:49]} 9. Nd5 {[%clk 0:02:48]}  Qd8 {[%clk 0:02:49]} 10. Nxb4 {[%clk 0:02:33]}  Nxb4 {[%clk 0:02:48]} 11. c3 {[%clk 0:02:33]}  Nc6 {[%clk 0:02:49]} 12. h3 {[%clk 0:02:16]}  Bh5 {[%clk 0:02:48]} 13. g4 {[%clk 0:02:16]}  Bg6 {[%clk 0:02:48]} 14. f4 {[%clk 0:02:16]}  Qh4 {[%clk 0:02:36]} 15. f5 {[%clk 0:01:46]}  Bh7 {[%clk 0:02:33]} 16. Kg2 {[%clk 0:01:38]}  h5 {[%clk 0:02:12]} 17. Qe1 {[%clk 0:01:33]}  Qg5 {[%clk 0:02:08]} 18. Qc1 {[%clk 0:01:30]}  Qh4 {[%clk 0:02:05]} 19. g5 {[%clk 0:01:09]}  f6 {[%clk 0:01:48]} 20. g6 {[%clk 0:00:46]}  Bg8 {[%clk 0:01:47]} 21. Bxg8 {[%clk 0:00:45]}  Rxg8 {[%clk 0:01:48]} 22. Ng1 {[%clk 0:00:45]}  O-O-O {[%clk 0:01:42]} 23. Nf3 {[%clk 0:00:44]}  Qf4 {[%clk 0:01:42]} 24. Qxf4 {[%clk 0:00:43]}  exf4 {[%clk 0:01:43]} 25. Nd4 {[%clk 0:00:31]}  Ne5 {[%clk 0:01:37]} 26. Rad1 {[%clk 0:00:30]}  d5 {[%clk 0:01:36]} 27. Ne6 {[%clk 0:00:23]}  f3+ {[%clk 0:01:23]} 28. Kg3 {[%clk 0:00:23]}  dxe4 {[%clk 0:01:01]} 29. dxe4 {[%clk 0:00:20]}  Rde8 {[%clk 0:00:55]} 30. Nd4 {[%clk 0:00:11]}  h4+ {[%clk 0:00:45]} 31. Kf4 {[%clk 0:00:11]}  Nc4 {[%clk 0:00:40]} 32. b3 {[%clk 0:00:09]}  Ne5 {[%clk 0:00:16]} 33. Nxf3 {[%clk 0:00:08]}  Nd7 {[%clk 0:00:17]} 34. Nd4 {[%clk 0:00:07]}  Nc5 {[%clk 0:00:16]} 35. Rfe1 {[%clk 0:00:08]}  Re5 {[%clk 0:00:16]} 36. Nf3 {[%clk 0:00:06]}  Re7 {[%clk 0:00:15]} 37. e5 {[%clk 0:00:07]}  fxe5+ {[%clk 0:00:08]} 38. Rxe5 {[%clk 0:00:06]}  Rxe5 {[%clk 0:00:09]} 39. Nxe5 {[%clk 0:00:07]}  Rf8 {[%clk 0:00:10]} 40. Nf7 {[%clk 0:00:04]}  Nd7 {[%clk 0:00:09]} 41. Kg5 {[%clk 0:00:04]}  Nf6 {[%clk 0:00:09]} 42. Kxh4 {[%clk 0:00:04]}  Re8 {[%clk 0:00:09]} 43. Kg5 {[%clk 0:00:04]}  b6 {[%clk 0:00:09]} 44. h4 {[%clk 0:00:04]}  Re4 {[%clk 0:00:10]} 45. Rg1 {[%clk 0:00:03]}  Ng8 {[%clk 0:00:04]} 46. h5 {[%clk 0:00:03]}  Kd7 {[%clk 0:00:04]} 47. h6 {[%clk 0:00:03]}  Ke7 {[%clk 0:00:03]} 48. h7 {[%clk 0:00:03]}  Nf6 {[%clk 0:00:04]} 49. h8=Q {[%clk 0:00:03]}  Kd7 {[%clk 0:00:03]} 50. Qxg7 {[%clk 0:00:03]} 1-0


[Site "https://www.chess.com"]

[Event "Titled Tuesday Blitz June 14 Early 2022"]
[White "Taboas Rodriguez, Daniel"]
[Black "Lashkin, Jegor"]
[WhiteFideId "2208466"]
[BlackFideId "13907808"]
[WhiteElo "2429"]
[BlackElo "2368"]
[Result "0-1"]
[Round "05"]
[TimeControl "180+1"]
[Date "2022.06.14"]
[WhiteClock "0:00:08"]
[BlackClock "0:00:45"]

1. d4 {[%clk 0:02:35]}  Nf6 {[%clk 0:02:59]} 2. Nf3 {[%clk 0:02:35]}  d5 {[%clk 0:02:59]} 3. c4 {[%clk 0:02:35]}  e6 {[%clk 0:03:00]} 4. Bg5 {[%clk 0:02:35]}  Bb4+ {[%clk 0:02:59]} 5. Nc3 {[%clk 0:02:35]}  dxc4 {[%clk 0:02:59]} 6. e4 {[%clk 0:02:34]}  h6 {[%clk 0:03:00]} 7. Bxf6 {[%clk 0:02:34]}  Qxf6 {[%clk 0:03:01]} 8. Bxc4 {[%clk 0:02:34]}  c5 {[%clk 0:03:01]} 9. O-O {[%clk 0:02:32]}  O-O {[%clk 0:03:01]} 10. e5 {[%clk 0:02:31]}  Qd8 {[%clk 0:03:02]} 11. Ne4 {[%clk 0:02:27]}  cxd4 {[%clk 0:03:02]} 12. Nxd4 {[%clk 0:02:22]}  Qc7 {[%clk 0:03:01]} 13. Qe2 {[%clk 0:01:14]}  Qxe5 {[%clk 0:03:00]} 14. Rad1 {[%clk 0:01:13]}  Nc6 {[%clk 0:02:10]} 15. Nxc6 {[%clk 0:01:05]}  bxc6 {[%clk 0:02:11]} 16. f4 {[%clk 0:01:04]}  Qc7 {[%clk 0:02:11]} 17. Rd3 {[%clk 0:00:51]}  Be7 {[%clk 0:01:54]} 18. Rg3 {[%clk 0:00:51]}  Rb8 {[%clk 0:01:44]} 19. Qh5 {[%clk 0:00:50]}  Kh8 {[%clk 0:01:36]} 20. Kh1 {[%clk 0:00:23]}  Rxb2 {[%clk 0:01:30]} 21. Ng5 {[%clk 0:00:18]}  Bf6 {[%clk 0:01:12]} 22. Bd3 {[%clk 0:00:18]}  Rd2 {[%clk 0:01:00]} 23. Ne4 {[%clk 0:00:17]}  Rxd3 {[%clk 0:00:55]} 24. Rxd3 {[%clk 0:00:17]}  Ba6 {[%clk 0:00:54]} 25. Rg3 {[%clk 0:00:13]}  Bxf1 {[%clk 0:00:51]} 26. Nxf6 {[%clk 0:00:13]}  Qxf4 {[%clk 0:00:48]} 27. Rf3 {[%clk 0:00:08]}  Qc1 {[%clk 0:00:45]} 0-1


[Site "https://www.chess.com"]